Cogmind - Beta 13 *** ADVENTURER MODE // 2024.04.07 @ 05:55:37 Player: Punished Result: Destroyed by Y-54 Guardian with Gatling Laser Performance ------------- Evolutions (3) 1500 Regions Visited (8) 1600 Robots Destroyed (167) 835 Value Destroyed (6514) 6514 Prototype IDs (14) 280 Alien Tech Used (0) 0 Bonus (3568) 3568 TOTAL SCORE: 14297 Bonus ------- High Alert Combat Kills 1263 Follower Combat Kills 1034 Entered Garrisons 400 Used RIF Installer 1000 Friendly Fire -129 Cogmind --------- Core Integrity 0/700 Matter 187/450 Energy 50/100 System Corruption 8% Temperature Cool (15) Movement Core (50) Location -7/Factory Parts ------- > --- POWER (2) -------- (None) > --- PROPULSION (2) --- (None) > --- UTILITY (6) ------ Large Matter Pod Relay Coupler [Specialist] (34) Relay Coupler [Behemoth] (18) > --- WEAPON (3) ------- (None) > --- INVENTORY (5) ---- Advanced Heat Sink Peak State ------------ > --- POWER ------------ Heavy Deuterium Engine Neutrino Core > --- PROPULSION ------- Medium Treads Medium Treads > --- UTILITY ---------- Advanced Heat Sink Medium Storage Unit Advanced Targeting Computer Weapon Cycler Improved Heavy Armor Plating > --- WEAPON ----------- Quantum Rifle Gauss Rifle Railgun > --- INVENTORY -------- Advanced Heat Sink Core Analyzer Weapon Cycler Improved Shield Generator Force Field Relay Coupler [Sentry] Relay Coupler [Specialist] Relay Coupler [Behemoth] Quantum Rifle Improved Remote Datajack [Rating: 66] Favorites ----------- Power Heavy Deuterium Engine Engine Heavy Deuterium Engine Power Core Neutrino Core Propulsion Advanced Treads Treads Advanced Treads Leg Improved Aluminum Leg Wheel Wheel Utility Medium Storage Unit Device Advanced Heat Sink Storage Medium Storage Unit Processor Advanced Targeting Computer Hackware Hacking Suite Protection Heavy Armor Plating Weapon Advanced Beam Rifle Energy Gun Advanced Beam Rifle Energy Cannon Beam Cannon Ballistic Gun Gauss Rifle Ballistic Cannon Light Cannon Launcher Rocket Launcher Special Weapon Remote Datajack Special Melee Weapon Datajack Build | -11 -10 -9 -9 -9 -9 -7 -7 -7 ------- Run | Yrd Mat Mat Sto Gar Rec Fac Gar Fac Slots Evolved 6 | . . 2 . . . 4 . . Power 1 | . . . . . . 1 . . Propulsion . | . . . . . . . . . Utility 4 | . . 2 . . . 2 . . Weapon 1 | . . . . . . 1 . . Parts Attached 105 | 8 13 22 9 14 . 7 19 13 Power 13 | 1 1 4 1 . . 1 5 . Engine 11 | 1 1 4 1 . . 1 3 . Core 2 | . . . . . . . 2 . Reactor . | . . . . . . . . . Propulsion 16 | 3 1 6 . 1 . . 3 2 Treads 8 | . . 2 . 1 . . 3 2 Leg 2 | . . 2 . . . . . . Wheel 6 | 3 1 2 . . . . . . Hover . | . . . . . . . . . Flight . | . . . . . . . . . Utility 34 | 2 5 7 3 3 . 2 5 7 Device 21 | 2 4 5 2 2 . . 3 3 Storage 2 | . . . 1 . . . . 1 Processor 5 | . 1 1 . 1 . 1 . 1 Hackware 4 | . . 1 . . . . 1 2 Protection 2 | . . . . . . 1 1 . Artifact . | . . . . . . . . . Weapon 42 | 2 6 5 5 10 . 4 6 4 Energy Gun 21 | 1 . 3 4 8 . 1 2 2 Energy Cannon 2 | . 2 . . . . . . . Ballistic Gun 9 | 1 2 . . . . 3 2 1 Ballistic Cannon 3 | . 2 1 . . . . . . Launcher 2 | . . . 1 1 . . . . Special Weapon 4 | . . . . 1 . . 2 1 Impact Weapon . | . . . . . . . . . Slashing Weapon . | . . . . . . . . . Piercing Weapon . | . . . . . . . . . Special Melee Weapon 1 | . . 1 . . . . . . Unidentified Prototypes 4 | . . 1 2 . . . 1 . Parts Lost 23 | . . 6 . 2 . . 4 11 Power 2 | . . 1 . . . . . 1 Propulsion 5 | . . 2 . . . . 2 1 Utility 10 | . . 3 . 1 . . 2 4 Weapon 6 | . . . . 1 . . . 5 Highest Loss Streak 11 | . . 2 . 1 . . 3 11 To Critical Strikes . | . . . . . . . . . Average Slot Usage (%) 93 | . 97 95 97 99 100 91 90 89 Engine 9 | . 14 10 11 11 11 15 7 6 Core 3 | . . . . . . . 6 6 Treads 13 | . . 1 22 22 22 15 14 14 Leg 1 | . . 8 . . . . . . Wheel 3 | . 28 9 . . . . . . Device 13 | . 22 25 14 10 11 7 9 14 Storage 6 | . . . 6 11 11 7 7 6 Processor 7 | . 3 6 11 11 11 7 7 6 Hackware 6 | . . 10 11 11 11 7 4 . Protection 3 | . . . . . . 6 6 6 Energy Gun 11 | . . 19 19 21 22 1 7 6 Ballistic Gun 8 | . 14 . . . . 21 13 14 Naked Turns 14 | . . . . . . . . 14 Heaviest Build 74 | 8 11 14 25 25 23 54 68 74 Greatest Support 56 | 26 26 44 44 44 44 44 44 56 Greatest Overweight (x) 17 | . . 4 . . . 1 3 17 Average Overweight (x) . | . . . . . . 1 1 . Largest Inventory Capacity 10 | 5 5 5 10 10 10 10 10 10 Average Capacity 8 | 5 5 5 8 10 10 10 10 9 Most Carried 10 | 2 5 5 8 10 10 10 10 10 Average Carried 7 | . 2 4 6 7 10 9 9 9 Final Capacity 10 | 5 5 5 10 10 10 10 10 5 Final Carried 10 | . 4 5 8 10 10 10 10 1 Class Distribution -------------------- 27% | Hacker-Mutant 25% | Gunner 12% | Commander-Gunner 10% | Hacker-Gunner 9% | Mutant 8% | Commander-Mutant Dominant Class ---------------- Mutant | -10/Materials Hacker-Mutant | -9/Materials Hacker-Mutant | -9/Storage Hacker-Mutant | -9/Garrison Commander-Mutant | -9/Recycling Commander-Gunner | -7/Factory Gunner | -7/Garrison Gunner | -7/Factory Resources | -11 -10 -9 -9 -9 -9 -7 -7 -7 ----------- Run | Yrd Mat Mat Sto Gar Rec Fac Gar Fac Matter Collected 2445 | 312 296 303 132 146 37 72 711 436 Remotely . | . . . . . . . . . Salvage Created 6401 | 264 430 1416 1215 554 275 55 1048 1144 Parts 393 | 22 35 93 71 34 12 3 59 64 Haulers Intercepted 14 | . 2 4 5 . 1 1 . 1 Recyclers Shooed 4 | 1 . 1 . . . . . 2 Parts Field Recycled . | . . . . . . . . . Retrieved Matter . | . . . . . . . . . Parts Self-Destructed . | . . . . . . . . . Prevented . | . . . . . . . . . Kills | -11 -10 -9 -9 -9 -9 -7 -7 -7 ------- Run | Yrd Mat Mat Sto Gar Rec Fac Gar Fac Combat Hostiles Destroyed 110 | . 11 27 14 15 2 . 25 16 Guns 96 | . 5 23 14 11 2 . 25 16 Cannons 9 | . 6 3 . . . . . . AOE 4 | . . . . 4 . . . . Classes Destroyed 16 | 3 5 3 1 1 . . 1 2 Worker 7 | 2 . . 3 . . . . 2 Builder 1 | . . . 1 . . . . . Tunneler 10 | 9 1 . . . . . . . Hauler 14 | . 2 4 5 . 1 1 . 1 Recycler 10 | 1 1 . 5 . 2 . . 1 Mechanic 2 | . 1 1 . . . . . . Operator 1 | . . 1 . . . . . . Watcher 12 | . 3 4 1 . . . 1 3 Swarmer 31 | . 9 7 4 3 . . 8 . Cutter 2 | . . . . . . . 2 . Grunt 49 | . 2 9 7 9 1 . 10 11 Brawler 2 | . . 1 . . . . . 1 Duelist 1 | . . . . . . . . 1 Protector 1 | . . . . . . . . 1 Sentry 16 | . . 10 3 1 . . 1 1 Programmer 8 | . . . . 2 1 . 4 1 Best Kill Streak 11 | 5 3 5 11 3 2 1 3 5 Combat Bots Only 6 | . 3 5 6 3 1 . 3 5 Max Kills in Single Turn 2 | 1 2 2 1 2 1 1 2 2 Gunslinging 1 | . 1 1 . 1 . . 1 . Exploded 2 | . . . . 2 . . . . Melee . | . . . . . . . . . Uniques/NPCs Destroyed . | . . . . . . . . . Combat | -11 -10 -9 -9 -9 -9 -7 -7 -7 -------- Run | Yrd Mat Mat Sto Gar Rec Fac Gar Fac Hostile Shots Fired 701 | . 27 126 42 70 4 2 103 327 Missed 212 | . 9 37 15 14 1 2 31 103 Damage Taken 5018 | . 146 697 221 623 34 74 966 2257 Core 1047 | . 40 122 46 121 12 . 71 635 Absorbed by Shields 267 | . . 95 . . . 23 . 149 Ignored by Resistances 1560 | . 47 238 70 190 9 25 282 699 Regen/Repaired (Parts) 171 | . 20 54 . . . 97 . . Core Remaining (%) 69 | 100 84 . . . 24 . . . Volleys Fired 387 | 32 31 77 55 59 5 2 73 53 Largest 3 | 2 2 2 2 2 2 3 3 3 Hottest 216 | 70 70 122 122 122 122 84 216 157 Shots Fired 827 | 64 62 154 108 102 11 6 183 137 Gun 767 | 64 45 119 106 98 11 6 181 137 Cannon 52 | . 17 35 . . . . . . Launcher 3 | . . . 2 1 . . . . Special 5 | . . . . 3 . . 2 . Kinetic 321 | 32 59 13 . . . 6 111 100 Thermal 465 | 32 3 141 106 65 11 . 70 37 Explosive 3 | . . . 2 1 . . . . Electromagnetic 33 | . . . . 33 . . . . Robot Hit Streak 47 | 9 10 18 17 27 14 12 23 47 Robot Miss Streak 3 | 2 3 2 3 2 1 1 2 1 Penetration Max 1 | . . . . . . . 1 1 Secondary Targets 15 | . 1 1 3 3 . . 3 4 Max Gunslinging Chain 1 | . 1 1 1 1 . . 1 1 Shots Hit Robots 545 | 47 38 113 65 57 9 4 98 114 Core Hits 239 | 18 19 40 30 30 5 2 41 54 Critical Kills 3 | . . 1 . . . . . 2 Critical Parts Destroyed 7 | . . . . . . . 7 . Critical Strikes 31 | 4 1 8 4 4 . . 7 3 Burn 19 | 4 . 7 4 4 . . . . Meltdown 1 | . . 1 . . . . . . Destroy 10 | . . . . . . . 7 3 Blast 1 | . 1 . . . . . . . Melee Attacks . | . . . . . . . . . Impact . | . . . . . . . . . Slashing . | . . . . . . . . . Piercing . | . . . . . . . . . Sneak Attacks . | . . . . . . . . . Combat Hostiles . | . . . . . . . . . Follow-up Attacks . | . . . . . . . . . Damage Inflicted 11728 | 515 665 2248 1410 1128 210 79 2420 3053 Guns 10706 | 515 414 1880 1380 768 210 79 2420 3040 Cannons 619 | . 251 368 . . . . . . Explosions 390 | . . . 30 360 . . . . Melee . | . . . . . . . . . Ramming 13 | . . . . . . . . 13 Kinetic 4618 | 164 628 122 . . . 79 1486 2139 Thermal 6670 | 351 37 2126 1380 731 210 . 934 901 Explosive 309 | . . . 30 279 . . . . Electromagnetic 118 | . . . . 118 . . . . Impact . | . . . . . . . . . Slashing . | . . . . . . . . . Piercing . | . . . . . . . . . Highest Corruption 8 | . . . . 3 3 . 1 8 Average Corruption 1 | . . . . 2 3 . 1 1 Corruption Purged . | . . . . . . . . . Corruption Blocked . | . . . . . . . . . Effects 43 | . . . . 3 10 . 14 16 Message Errors 10 | . . . . 2 1 . 5 2 Matter Fused 10 | . . . . . 4 . 3 3 Heat Flow Errors 4 | . . . . . 2 . . 2 Energy Discharges 8 | . . . . . 1 . 2 5 Parts Rejected 1 | . . . . . . . . 1 Parts Fused 1 | . . . . . 1 . . . Data Loss (minor) 4 | . . . . 1 . . 3 . Data Loss (major) 2 | . . . . . . . 1 1 Misfires 3 | . . . . . 1 . . 2 Overload Shots . | . . . . . . . . . Overflow Damage 20 | . 15 . . 5 . . . . Projectiles 15 | . 15 . . . . . . . Explosions 5 | . . . . 5 . . . . Melee . | . . . . . . . . . Knockbacks 3 | . 1 1 . . . . . 1 Impact 1 | . . . . . . . . 1 Kinetic 2 | . 1 1 . . . . . . Secondary . | . . . . . . . . . Self-Inflicted Damage . | . . . . . . . . . Shots . | . . . . . . . . . Rammed 1 | . . . . . . . . 1 Targets Rammed 1 | . . . . . . . . 1 Kicked . | . . . . . . . . . Crushed . | . . . . . . . . . Highest Temperature 492 | 90 60 187 48 177 210 . 409 492 Average Temperature 76 | 32 14 37 9 34 41 . 94 177 Received Heat Transfer 1948 | . 18 396 75 228 . . 249 982 Effects 10 | . . . . . . . 2 8 Shutdowns 8 | . . . . . . . 1 7 Energy Bleed 2 | . . . . . . . 1 1 Siege Activations . | . . . . . . . . . Robots Corrupted . | . . . . . . . . . Combat Hostiles . | . . . . . . . . . Parts Fried . | . . . . . . . . . Impact Corruptions . | . . . . . . . . . Robots Melted 1 | . . 1 . . . . . . Combat Hostiles 1 | . . 1 . . . . . . Parts Melted 27 | 5 . 11 4 3 2 . . 2 Heat Transferred 12879 | 1332 111 4514 2849 1592 360 . 1105 1016 Parts Sabotaged . | . . . . . . . . . Parts Stolen . | . . . . . . . . . Parts Stripped . | . . . . . . . . . Power Chain Reactions 1 | . . . . 1 . . . . Alert | -11 -10 -9 -9 -9 -9 -7 -7 -7 ------- Run | Yrd Mat Mat Sto Gar Rec Fac Gar Fac Peak Influence 2667 | 60 342 555 327 1006 450 280 2667 1310 Initial 1212 | . 34 16 145 148 387 139 35 1212 Average 649 | 29 92 318 206 512 365 120 1052 1137 Maximum Alert Level 5 | . 1 2 1 3 2 1 5 4 Low Security (%) 29 | 100 83 20 42 18 . 93 22 . Level 1 19 | . 16 49 57 18 50 6 5 . Level 2 18 | . . 29 . 43 49 . 18 . Level 3 10 | . . . . 19 . . 9 39 Level 4 12 | . . . . . . . 15 60 Level 5 9 | . . . . . . . 27 . High Security . | . . . . . . . . . Max Security . | . . . . . . . . . Squads Dispatched 19 | . . 3 3 . . 5 . 8 Investigation 3 | . . 2 1 . . . . . Extermination 4 | . . . . . . 2 . 2 Reinforcement 1 | . . 1 . . . . . . Assault 5 | . . . . . . . . 5 Garrison 6 | . . . 2 . . 3 . 1 Intercept . | . . . . . . . . . Searches Triggered . | . . . . . . . . . Construction Impeded . | . . . . . . . . . Haulers Reinforced . | . . . . . . . . . Active Scanning Responses . | . . . . . . . . . Cargo Convoy Interrupts . | . . . . . . . . . Stealth | -11 -10 -9 -9 -9 -9 -7 -7 -7 --------- Run | Yrd Mat Mat Sto Gar Rec Fac Gar Fac Distress Signals 6 | . . . 5 . . . 1 . Communications Jammed . | . . . . . . . . . Distress Signals . | . . . . . . . . . Times Spotted 185 | . 16 34 17 27 1 4 47 39 Peak Tracking Total 12 | . 5 6 5 8 1 3 4 12 Tactical Retreats 15 | . 1 . . 1 . . 13 . Traps | -11 -10 -9 -9 -9 -9 -7 -7 -7 ------- Run | Yrd Mat Mat Sto Gar Rec Fac Gar Fac Traps Triggered 14 | . 3 1 . . . . 7 3 Indirectly . | . . . . . . . . . Trap Hack Attempts . | . . . . . . . . . Triggered . | . . . . . . . . . Disarmed . | . . . . . . . . . Reprogrammed . | . . . . . . . . . Reused . | . . . . . . . . . Traps Extracted . | . . . . . . . . . Installed . | . . . . . . . . . Triggered . | . . . . . . . . . Machines | -11 -10 -9 -9 -9 -9 -7 -7 -7 ---------- Run | Yrd Mat Mat Sto Gar Rec Fac Gar Fac Machines Disabled 31 | . . 1 3 9 . . 11 7 Max in Single Turn 4 | . . 1 1 1 . . 2 4 Garrison Access 1 | . . . . . . . . 1 Garrison Relay 9 | . . . . 4 . . 5 . Phase Generator 1 | . . . . . . . 1 . Machines Repaired . | . . . . . . . . . Machines Dismantled . | . . . . . . . . . Machines Sabotaged . | . . . . . . . . . Overloaded Fab Kills . | . . . . . . . . . Hacking | -11 -10 -9 -9 -9 -9 -7 -7 -7 --------- Run | Yrd Mat Mat Sto Gar Rec Fac Gar Fac Machines Accessed 42 | . 6 12 7 4 5 2 1 5 Terminals 34 | . 5 9 6 4 5 . 1 4 Fabricators . | . . . . . . . . . Repair Stations 2 | . 1 1 . . . . . . Recycling Units . | . . . . . . . . . Scanalyzers 2 | . . 2 . . . . . . Garrison Access 4 | . . . 1 . . 2 . 1 Total Hacks 131 | . 13 51 16 6 21 4 4 16 Successful 82 | . 9 34 9 4 11 4 . 11 Failed 49 | . 4 17 7 2 10 . 4 5 Catastrophic 3 | . . . . . 3 . . . Database Lockouts . | . . . . . . . . . Manual . | . . . . . . . . . Terminals 103 | . 11 33 14 6 21 . 4 14 Fabricators . | . . . . . . . . . Repair Stations 9 | . 2 7 . . . . . . Recycling Units . | . . . . . . . . . Scanalyzers 11 | . . 11 . . . . . . Garrison Access 8 | . . . 2 . . 4 . 2 Terminal Hacks 55 | . 7 17 7 4 11 . . 9 Record 4 | . . . . . 2 . . 2 Part Schematic 2 | . . . 2 . . . . . Robot Analysis 2 | . 1 . 1 . . . . . Prototype ID Bank 8 | . 1 3 1 . 2 . . 1 Open Door 3 | . . . 2 1 . . . . Open DSF 2 | . . . . . . . . 2 Level Access Points 1 | . . 1 . . . . . . Emergency Access Points 4 | . 1 . . 1 2 . . . Terminal Index 2 | . . 1 . . 1 . . . Scanalyzer Index 1 | . . 1 . . . . . . Alert Level 2 | . . 1 . . 1 . . . Unreport Threat 5 | . 3 . 1 . . . . 1 Locate Traps 4 | . . 3 . . . . . 1 Dispatch Records 3 | . . 1 . . 1 . . 1 Maintenance Status 1 | . . 1 . . . . . . Transport Status 3 | . . 2 . . . . . 1 Reinforcement Status 1 | . . . . . 1 . . . Hauler Manifests 2 | . 1 . . . 1 . . . Registered Components 1 | . . 1 . . . . . . Zone Layout 2 | . . 2 . . . . . . Garrison Registry 1 | . . . . 1 . . . . Patrol Navigation 1 | . . . . 1 . . . . Fabricator Hacks . | . . . . . . . . . Repair Station Hacks 8 | . 2 6 . . . . . . Scan Component 4 | . 1 3 . . . . . . Repair 4 | . 1 3 . . . . . . Recycling Unit Hacks . | . . . . . . . . . Scanalyzer 11 | . . 11 . . . . . . Insert Component 5 | . . 5 . . . . . . Analyze 6 | . . 6 . . . . . . Garrison Access Hacks 8 | . . . 2 . . 4 . 2 Unlock Access 4 | . . . 1 . . 2 . 1 Seal Access 1 | . . . . . . . . 1 Coupler Status 3 | . . . 1 . . 2 . . Unauthorized Hacks . | . . . . . . . . . Terminals . | . . . . . . . . . Fabricators . | . . . . . . . . . Repair Stations . | . . . . . . . . . Recycling Units . | . . . . . . . . . Scanalyzers . | . . . . . . . . . Garrison Access . | . . . . . . . . . Data Cores Recovered 1 | . . 1 . . . . . . Used . | . . . . . . . . . Hacking Detections 32 | . 3 10 6 3 3 2 1 4 Full Trace Events 4 | . . 2 1 . 1 . . . Feedback Events . | . . . . . . . . . Feedback Blocked . | . . . . . . . . . Robot Schematics Acquired . | . . . . . . . . . Robots Built . | . . . . . . . . . Authchips . | . . . . . . . . . Time . | . . . . . . . . . Total Robot Build Rating . | . . . . . . . . . Part Schematics Acquired 7 | . . 5 2 . . . . . Parts Built . | . . . . . . . . . Authchips . | . . . . . . . . . Time . | . . . . . . . . . Total Part Build Rating . | . . . . . . . . . Parts Repaired 4 | . 1 3 . . . . . . Time 110 | . 26 84 . . . . . . Parts Recycled . | . . . . . . . . . Recycled Matter . | . . . . . . . . . Retrieved Matter . | . . . . . . . . . Retrieved Components . | . . . . . . . . . Parts Scanalyzed 5 | . . 5 . . . . . . Part Schematics Acquired 5 | . . 5 . . . . . . Parts Damaged . | . . . . . . . . . Bothacking | -11 -10 -9 -9 -9 -9 -7 -7 -7 ------------ Run | Yrd Mat Mat Sto Gar Rec Fac Gar Fac Used RIF Installer 2 | . . . . 1 . . 1 . Robot Detection 1 | . . . . . . . 1 . Robots Hacked 2 | . . . . 1 . . 1 . Non-combat . | . . . . . . . . . Combat 2 | . . . . 1 . . 1 . Robot Hacks Applied 2 | . . . . 1 . . 1 . parse_system 1 | . . . . 1 . . . . formatsys_high 1 | . . . . . . . 1 . Relay Couplers Released 44 | . . . . 17 . . 27 . Machine Destruction 41 | . . . . 17 . . 24 . Programmers 3 | . . . . . . . 3 . Attached 3 | . . . . . . . 1 2 Fabnet Peak Effective % . | . . . . . . . . . Robots Rewired 19 | . . . . 2 11 . 6 . Allies Hacked 1 | . . . . 1 . . . . Hacks Repelled . | . . . . . . . . . Allies | -11 -10 -9 -9 -9 -9 -7 -7 -7 -------- Run | Yrd Mat Mat Sto Gar Rec Fac Gar Fac Total Allies 30 | . . . 10 2 11 . 7 . Largest Group 11 | . . . 10 8 11 11 8 . Highest-Rated Group 188 | . . . 88 72 188 188 178 . Highest-Rated Ally 43 | . . . 16 39 34 34 43 . Total Orders 5 | . . . 2 1 . . 2 . ROAM 1 | . . . . 1 . . . . GUARD 1 | . . . . . . . 1 . AID 1 | . . . . . . . 1 . EXPLORE 2 | . . . 2 . . . . . Ally Attacks 153 | . . . 22 53 . 20 58 . Total Damage 2793 | . . . 213 594 . 673 1313 . Kills 37 | . . . 4 13 . 7 13 . Allies Corrupted 1 | . . . 1 . . . . . Allies Melted . | . . . . . . . . . Intel | -11 -10 -9 -9 -9 -9 -7 -7 -7 ------- Run | Yrd Mat Mat Sto Gar Rec Fac Gar Fac Robot Analysis Total 2 | . 1 . 1 . . . . . Derelict Logs Recovered . | . . . . . . . . . Drone Launches 18 | . . . 18 . . . . . Drone Recoveries 2 | . . . 2 . . . . . Exploration | -11 -10 -9 -9 -9 -9 -7 -7 -7 ------------- Run | Yrd Mat Mat Sto Gar Rec Fac Gar Fac Turns Passed 11252 | 285 751 1578 799 1463 602 647 3711 1416 Spaces Moved 5574 | 151 705 1042 370 814 352 217 1385 538 Core 67 | 8 . 22 . . . . . 37 Treads 3735 | . . 96 370 814 352 217 1385 501 Legs 450 | . . 450 . . . . . . Wheels 1322 | 143 705 474 . . . . . . Hover . | . . . . . . . . . Flight . | . . . . . . . . . Fastest Speed 50 | 50 80 85 145 145 145 225 225 50 Average Speed 163 | 83 81 108 145 145 145 225 240 226 Slowest Speed 900 | 90 90 250 145 145 145 225 385 900 Overloaded Moves . | . . . . . . . . . Propulsion Burnouts . | . . . . . . . . . Robots Hopped . | . . . . . . . . . Cave-ins Triggered . | . . . . . . . . . Exploration Rate (%) 62 | 5 98 92 71 90 80 10 98 14 Regions Visited 8 Branch Regions 2 Pre-discovered Areas . | . . . . . . . . . Known Exits Taken 2 | . . . 1 . . 1 . . Unknown Exits Taken 4 | 1 1 1 . . 1 . . . Scrap Searched . | . . . . . . . . . Spaces Dug 7 | . . . . . . . 5 2 Terrain Destroyed 142 | . . . 12 1 . . 85 44 Melee . | . . . . . . . . . Projectile 26 | . . . . . . . 13 13 AOE 116 | . . . 12 1 . . 72 31 Terrain Rammed . | . . . . . . . . . Walls Destroyed . | . . . . . . . . . Machines Disabled . | . . . . . . . . . Actions | -11 -10 -9 -9 -9 -9 -7 -7 -7 --------- Run | Yrd Mat Mat Sto Gar Rec Fac Gar Fac Total 7028 | 252 831 1340 525 994 434 370 1630 652 Wait 699 | 53 58 171 63 83 11 136 84 40 Move 5567 | 150 704 1041 369 813 351 217 1384 538 Hop . | . . . . . . . . . Pick Up 79 | 8 17 17 10 10 . 6 10 1 Fast Attach 12 | . . 5 1 . . . 5 1 Attach 40 | 7 6 8 1 4 . 4 1 9 Detach . | . . . . . . . . . Swap 53 | 1 7 9 7 10 . 3 13 3 Drop 53 | 1 8 12 9 5 . 2 14 2 Fire 387 | 32 31 77 55 59 5 2 73 53 Melee . | . . . . . . . . . Ram . | . . . . . . . . . Kick . | . . . . . . . . . Crush 1 | . . . . . . . . 1 Escape Stasis 16 | . . . . . . . 12 4 Rewire 114 | . . . 3 10 67 . 34 . Trap . | . . . . . . . . . Miscellaneous 7 | . . . 7 . . . . . Route ------- -11/Scrapyard -10/Materials (discovered 5 exits: *Mat x3 / [*Min] / [Sub]) -9/Materials (discovered 5 exits: *Mat x3 / [*Min] / *Sto) -9/Storage -9/Garrison (discovered 3 exits: *Rec x3) -9/Recycling -7/Factory (discovered 2 exits: Gar / Gar) -7/Garrison (discovered 3 exits: *Fac x3) -7/Factory (discovered 1 exit: [*Fac]) History --------- Turn | Location | Event 24 | -11/Scrapyard | Discovered new exit (range 16) 286 | -11/Scrapyard | Entered Materials 306 | -10/Materials | Build established: Mutant 505 | -10/Materials | Discovered new exit (range 14) 601 | -10/Materials | Discovered new exit (range 15) 762 | -10/Materials | Discovered new exit (range 15) 793 | -10/Materials | Discovered new exit (range 3) 868 | -10/Materials | Discovered new exit (range 7) 978 | -10/Materials | Repaired Heat Sink 1037 | -10/Materials | Entered another Materials area 1037 | -9/Materials | Evolved 2 slots: Utility x2 1274 | -9/Materials | Repaired Wheel 1308 | -9/Materials | Repaired Shield Generator 1335 | -9/Materials | Repaired Lgt. Ion Engine 1346 | -9/Materials | Discovered new exit (range 3) 1375 | -9/Materials | Build established: Hacker-Mutant 1687 | -9/Materials | Discovered new exit (range 6) 1897 | -9/Materials | Identified exit to Materials 2459 | -9/Materials | Discovered new exit (range 9) 2615 | -9/Materials | Entered Storage 2736 | -9/Storage | Lost 3 allies 2847 | -9/Storage | Garrison activated, responded to threat 2941 | -9/Storage | Identified exit to Garrison 2973 | -9/Storage | Garrison activated, responded to threat 3114 | -9/Storage | Assisted by bots powering up and referring to "LRC-V3" 3414 | -9/Storage | Entered Garrison 3414 | -9/Garrison | Accompanied by 8 allies 3435 | -9/Garrison | Build established: Commander-Mutant 3474 | -9/Garrison | Triggered checkpoint 3658 | -9/Garrison | Triggered checkpoint 3678 | -9/Garrison | Triggered checkpoint 3710 | -9/Garrison | Lost 3 allies 3754 | -9/Garrison | Triggered checkpoint 3800 | -9/Garrison | Installed Relay Interface Framework 3889 | -9/Garrison | Discovered new exit (range 9) 3970 | -9/Garrison | Build established: Hacker-Mutant 4024 | -9/Garrison | Triggered checkpoint 4060 | -9/Garrison | Lost 3 allies 4088 | -9/Garrison | Triggered checkpoint 4131 | -9/Garrison | Discovered new exit (range 73) 4131 | -9/Garrison | Discovered new exit (range 21) 4131 | -9/Garrison | Discovered new exit (range 36) 4154 | -9/Garrison | Garrison Relay disabled 4363 | -9/Garrison | Garrison Relay disabled 4633 | -9/Garrison | Triggered checkpoint 4654 | -9/Garrison | Garrison Relay disabled 4730 | -9/Garrison | Core integrity fell below 50% 4843 | -9/Garrison | Garrison Relay disabled 4877 | -9/Garrison | Entered Recycling 4878 | -9/Recycling | Joined Warlord attack on 0b10 via Recycling 5328 | -9/Recycling | Build established: Commander-Mutant 5426 | -9/Recycling | Discovered new exit (range 15) 5479 | -9/Recycling | Entered Factory 5479 | -7/Factory | Accompanied by 11 allies 5479 | -7/Factory | Evolved 4 slots: Power x1, Utility x2, Weapon x1 5705 | -7/Factory | Garrison activated, responded to threat 5759 | -7/Factory | Identified exit to Garrison 5771 | -7/Factory | Build established: Commander-Gunner 5900 | -7/Factory | Lost 3 allies 6054 | -7/Factory | Identified exit to Garrison 6068 | -7/Factory | Lost 4 allies 6126 | -7/Factory | Entered Garrison 6126 | -7/Garrison | Accompanied by 2 allies 6950 | -7/Garrison | Triggered checkpoint 6972 | -7/Garrison | Triggered checkpoint 7016 | -7/Garrison | Triggered checkpoint 7142 | -7/Garrison | Triggered checkpoint 7189 | -7/Garrison | Garrison Relay disabled 7228 | -7/Garrison | Discovered new exit (range 14) 7396 | -7/Garrison | Triggered checkpoint 7435 | -7/Garrison | Lost 4 allies 7582 | -7/Garrison | Build established: Hacker-Gunner 7834 | -7/Garrison | Discovered new exit (range 10) 7859 | -7/Garrison | Triggered checkpoint 7943 | -7/Garrison | Garrison Relay disabled 8106 | -7/Garrison | Triggered checkpoint 8211 | -7/Garrison | Garrison Relay disabled 8230 | -7/Garrison | Triggered checkpoint 8329 | -7/Garrison | Lost 3 parts (1n2u) 8338 | -7/Garrison | Discovered new exit (range 13) 8586 | -7/Garrison | Build established: Gunner 8737 | -7/Garrison | Expanded RIF knowledge: Robot Detection 8815 | -7/Garrison | Phase Generator disabled 8996 | -7/Garrison | Triggered checkpoint 9050 | -7/Garrison | Garrison Relay disabled 9798 | -7/Garrison | Garrison Relay disabled 9837 | -7/Garrison | Entered Factory 9842 | -7/Factory | Identified exit to DSF 10237 | -7/Factory | First assault squad dispatched 10403 | -7/Factory | Identified exit to Garrison 11080 | -7/Factory | Discovered new exit (range 14) 11178 | -7/Factory | Garrison activated, responded to threat 11224 | -7/Factory | Released all parts (6) 11231 | -7/Factory | Core integrity fell below 50% 11251 | -7/Factory | Core integrity fell below 20% 11253 | -7/Factory | Destroyed by Y-54 Guardian with Gatling Laser Last Messages --------------- Med. Treads destroyed. R-06 Scavenger collects Carbon-fiber Leg. M-28 Smith repairs B-48 Gladiator. Railgun destroyed. R-06 Scavenger collects Med. Treads. Imp. Shield Generator destroyed. Quantum Rifle destroyed. Neutrino Core destroyed. Released Weapon Cycler. Released Med. Storage Unit. Released Hvy. Deuterium Engine. Released Core Analyzer. Released Weapon Cycler. Released Force Field. Quantum Rifle destroyed. XQCY2 K6|DU|G0VPL 4PDT4QNTHV80C5 % Imp. Remote Datajack destroyed. Acquired Lrg. Matter Pod. Nuclear Reactor explodes. L-41 Fighter destroyed. Map ----- +----------------------------------------------------+ | ??????????????????????????????# """" """" """" | | ??????????????????????????????# """" """" """"% | | ???????????????????????????"" # = | | ???????????????????????????"" # " % | | ??????????????????????????? # "%" = | | ?????###??????????????????? ?# ######### | | ###### ???????????????####/### #???????# | | # #???????????????# #???????# | | # ########????????# #???????# | | # # =#????????# #???????# | | # # """ ########## #???????# | | #+#### # "T" + % % #???????# | | + ############+#+########??######+#+## | | ###### ! ] #??# #??# | | #????# = #??# """""" """""" !#??# | | #????###%####??# """""" """""" #??# | | ###??????###?????#! """""" """""" #??# ! | | ?????????????????# """""" """""" #??# | | ?????????????????# #??# | | ?????????????????# #??# | | ??##################################??############ | | ??# # mg #???????????????? | | ??# # """ #???????????????? | | #?# # """ ]]! #???????????????? | | ### # """%!lY! ##??????????????? | | + # g * b@ #??????????????? | | ### " b """ ##??????????????? | | #########/###### Y """ ! #???????????????? | | ^ % #??# Y gp """ #???????????????? | | ^^ #??# #???????????????? | | ^^ """ ##### +######???????????????? | | ^ """ ## ! #????????????????????? | | ### """ ## r #????????????????????? | | ??# ## ## r #????????????????????? | | ??# ##%""""" ## #????????????????????? | | ??# ## """"" ## #????????????????????? | | ??# "%+ """ ## #????????????????????? | | ??# ########## ## #????????????????????? | | ??# ?????????# ## #????????????????????? | | ?? ??????????# ] ## #????????????????????? | | ?#???????????+ ## #????????????????????? | | ?????????????# ]]]## +????????????????????? | | ?????????????# ]]]## #????????????????????? | | ?????????????# ]]]## #????????????????????? | | ?????????????? ## #????????????????????? | | ?????????????? #? ????????????????????? | | ??????????????#####/##? ??????????????????????? | | ?????????????????????????????????????????????????? | | ?????????????????????????????????????????????????? | | ?????????????????????????????????????????????????? | +----------------------------------------------------+ Best States ------------- Heat Dissipation 53 Energy Generation 32 Energy Capacity 525 Matter Stores 300 Matter Capacity 300 Sight Range 16 Terrain Scan Range 16 Terrain Scan Density 10 Armor Coverage 600 Resistance: KI 20 Resistance: TH 20 Resistance: EX 20 Resistance: EM 20 Resistance: I 20 Resistance: S 20 Resistance: P 20 Weapon Cycling 30 Evasion (%) 55 Targeting Accuracy 8 Core Analysis 6 Recoil Reduction 2 Offensive Hacking 20 Relay Coupler Types 1 Relay Coupler Value 19 Item Schematics ----------------- Datajack | -9/Materials | Scanalyzed Recalibrator | -9/Materials | Scanalyzed Lgt. Cannon | -9/Materials | Scanalyzed Rocket Launcher | -9/Materials | Scanalyzed Hvy. Ion Engine | -9/Materials | Scanalyzed Assault Cannon | -9/Storage | Hacked Field Laser | -9/Storage | Hacked Robot Schematics ------------------ None Fabricated ------------ Nothing Alien Tech Used ----------------- None Achievements -------------- Assimilation Complete Gun Specialist Challenges ------------ None Game ------ Seed DecoderTacticalThermoblaster Manual? 0 Play Time 01:37:05 Cumulative 12.9 hours Start 2024.04.07 @ 04:14:26 End 2024.04.07 @ 05:55:37 Sessions 1 Manual Loads 0 Difficulty Adventurer Special Mode None Game No. 6 Rogue 0 Adventurer 6 Explorer 0 Win Type - Total 0 Types 0/0/0/0/0/0/0/0/0 Lore% 8 Gallery% 21 Achievement% 19 Wizard Run 0 Options --------- Layout 1 ASCII 0 Keyboard 0 Movement Mouse Keybinds 0 Fullscreen 1 Font 24/Smallcaps Map View 50x35 Zoom Use 3% Tactical HUD 0 Map Filters NONE Filters NONE Steam 1 RUN: 2eb08d06-0912-481c-8c28-f631e6dbc366